fUSD/lending_fUSD_20251019
["ID","MTS","AMOUNT","RATE_DAILY","PERIOD"]
[391839415,1760901065238,-358.47327611,0.00033424,8]
[391839416,1760901065248,-282.01119971,0.00033424,8]
[391839417,1760901065258,-500.0,0.00033424,8]
[391839418,1760901065268,-500.0,0.00033424,8]
[391839419,1760901065277,-929.45,0.00033424,8]
[391839420,1760901065288,-500.0,0.00033424,8]
[391839421,1760901065297,-167.6035325,0.00033424,8]
[391839422,1760901065309,-500.0,0.00033424,8]
[391839423,1760901065318,-211.77872656,0.00033424,8]
[391839424,1760901065328,-500.0,0.00033424,8]
[391839425,1760901065338,-1014.29,0.00033424,8]
[391839426,1760901065347,-500.0,0.00033424,8]
[391839427,1760901065357,-500.0,0.00033424,8]
[391839428,1760901065367,-578.15023002,0.00033424,8]
[391839429,1760901065377,-500.0,0.00033424,8]
[391839430,1760901065388,-564.32852836,0.00033424,8]
[391839431,1760901065399,-500.0,0.00033424,8]
[391839432,1760901065410,-500.0,0.00033424,8]
[391839433,1760901065419,-538.81230116,0.00033424,8]
[391839434,1760901065429,-500.0,0.00033424,8]
[391839435,1760901065440,-542.98377032,0.00033424,8]
[391839436,1760901065451,-500.0,0.00033424,8]
[391839437,1760901065459,-500.0,0.00033424,8]
[391839438,1760901065471,-1699.88148465,0.00033507,2]
[391839439,1760901065480,-500.0,0.00033597,8]
[391839440,1760901065490,-500.0,0.00033597,2]
[391839441,1760901065501,-635.1486627,0.00033597,8]
[391839442,1760901065511,-8897.8857605,0.00033623,2]
[391839443,1760901065520,-150.0,0.00033673,5]
[391839444,1760901065530,-1699.88148465,0.00033689,2]
[391839445,1760901065539,-737.53,0.00033697,8]
[391839446,1760901065548,-500.0,0.00033697,8]
[391839447,1760901065558,-468.88,0.00033698,8]
[391839448,1760901065567,-626.9,0.00033698,8]
[391839449,1760901065576,-500.0,0.00033698,8]
[391839450,1760901065586,-500.0,0.00033698,8]
[391839451,1760901065596,-500.0,0.00033698,8]
[391839452,1760901065606,-410.56887914,0.00033698,8]
[391839453,1760901065615,-228.63611986,0.00033698,8]
[391839454,1760901065624,-500.0,0.00033698,8]
[391839455,1760901065634,-568.64,0.00033698,8]
[391839456,1760901065643,-500.0,0.00033698,8]
[391839457,1760901065737,-500.0,0.00033698,8]
[391839458,1760901065747,-500.0,0.00033698,8]
[391839459,1760901065757,-500.0,0.00033698,8]
[391839460,1760901065768,-500.0,0.00033698,8]
[391839461,1760901065777,-500.0,0.00033698,8]
[391839462,1760901065786,-500.0,0.00033698,8]
[391839463,1760901065796,-1226.55,0.00033698,8]
[391839464,1760901065805,-500.0,0.00033698,8]
[391839465,1760901065815,-500.0,0.00033698,8]
[391839466,1760901065823,-977.91,0.00033698,8]
[391839467,1760901065833,-500.0,0.00033698,8]
[391839468,1760901065844,-500.0,0.00033698,2]
[391839469,1760901065854,-500.0,0.00033698,8]
[391839470,1760901065866,-500.0,0.00033698,8]
[391839471,1760901065880,-500.0,0.00033698,8]
[391839472,1760901065889,-500.0,0.00033698,8]
[391839473,1760901065900,-389.78207892,0.00033698,8]
[391839474,1760901065909,-516.24,0.00033698,8]
[391839475,1760901065918,-1091.36,0.00033698,8]
[391839476,1760901065929,-500.0,0.00033698,8]
[391839477,1760901065939,-500.0,0.00033698,8]
[391839478,1760901065949,-500.0,0.00033698,8]
[391839479,1760901065961,-500.0,0.00033698,8]
[391839480,1760901065971,-500.0,0.00033698,8]
[391839481,1760901065982,-500.0,0.00033698,8]
[391839482,1760901065991,-901.85,0.00033698,8]
[391839483,1760901066000,-500.0,0.00033698,8]
[391839484,1760901066010,-550.90492557,0.00033698,8]
[391839485,1760901066019,-503.14019503,0.00033698,8]
[391839486,1760901066030,-500.0,0.00033698,8]
[391839487,1760901066039,-510.66300417,0.00033698,8]
[391839488,1760901066049,-500.0,0.00033698,8]
[391839489,1760901066059,-180.7479847,0.00033698,8]
[391839490,1760901066068,-500.0,0.00033698,8]
[391839491,1760901066077,-500.0,0.00033698,8]
[391839492,1760901066087,-500.0,0.00033698,8]
[391839493,1760901066097,-500.0,0.00033698,8]
[391839494,1760901066107,-201.42171244,0.00033698,8]
[391839495,1760901066116,-500.0,0.00033698,8]
[391839496,1760901066126,-500.0,0.00033698,8]
[391839497,1760901066136,-416.42416483,0.00033698,8]
[391839498,1760901066146,-500.0,0.00033698,8]
[391839499,1760901066156,-500.0,0.00033698,8]
[391839500,1760901066165,-500.0,0.00033698,8]
[391839501,1760901066175,-648.71292068,0.00033698,8]
[391839502,1760901066186,-500.0,0.00033698,8]
[391839503,1760901066195,-500.0,0.00033698,8]
[391839504,1760901066205,-244.94785364,0.00033698,8]
[391839505,1760901066215,-931.05,0.00033698,8]
[391839506,1760901066224,-616.37144631,0.00033698,8]
[391839507,1760901066234,-500.0,0.00033698,8]
[391839508,1760901066243,-312.27467325,0.00033698,8]
[391839509,1760901066253,-500.0,0.00033698,8]
[391839510,1760901066262,-500.0,0.00033698,8]
[391839511,1760901066272,-500.0,0.00033698,8]
[391839512,1760901066282,-500.0,0.00033698,8]
[391839513,1760901066292,-219.1058584,0.00033698,8]
[391839514,1760901066301,-500.0,0.00033698,8]
[391839515,1760901066311,-500.0,0.00033698,8]
[391839516,1760901066321,-156.65551365,0.00033698,8]
[391839517,1760901066332,-500.0,0.00033698,8]
[391839518,1760901066342,-890.67,0.00033698,8]
[391839519,1760901066351,-500.0,0.00033698,8]
[391839520,1760901066359,-772.51,0.00033698,8]
[391839521,1760901066368,-500.0,0.00033698,8]
[391839522,1760901066378,-500.0,0.00033698,8]
[391839523,1760901066391,-513.2900943,0.00033698,8]
[391839524,1760901066413,-500.0,0.00033698,8]
[391839525,1760901066431,-500.0,0.00033698,8]
[391839526,1760901066450,-500.0,0.00033698,8]
[391839527,1760901066466,-500.0,0.00033698,8]
[391839528,1760901066483,-500.0,0.00033698,8]
[391839529,1760901066502,-500.0,0.00033698,8]
[391839530,1760901066521,-500.0,0.00033698,8]
[391839531,1760901066539,-500.0,0.00033698,8]
[391839532,1760901066558,-500.0,0.00033698,8]
[391839533,1760901066576,-500.0,0.00033698,8]
[391839534,1760901066596,-500.0,0.00033698,8]
[391839535,1760901066610,-500.0,0.00033698,8]
[391839536,1760901066629,-623.07,0.00033698,8]
[391839537,1760901066642,-300.0,0.00033698,2]
[391839538,1760901066660,-500.0,0.00033698,8]
[391839539,1760901066673,-748.98,0.00033698,8]
[391839540,1760901066688,-500.0,0.00033698,8]
[391839541,1760901066703,-507.56,0.00033698,8]
[391839542,1760901066718,-242.02077459,0.00033698,8]
[391839543,1760901066732,-1301.41,0.00033698,8]
[391839544,1760901066748,-500.0,0.00033698,8]
[391839545,1760901066761,-500.0,0.00033698,8]
[391839546,1760901066776,-640.03146794,0.00033698,8]
[391839547,1760901066790,-500.0,0.00033698,8]
[391839548,1760901066804,-1301.92,0.00033698,8]
[391839549,1760901066819,-500.0,0.00033698,8]
[391839550,1760901066833,-500.0,0.00033698,8]
[391839551,1760901066848,-500.0,0.00033698,8]
[391839552,1760901066866,-252.36662726,0.00033698,8]
[391839553,1760901066883,-607.67214109,0.00033698,8]
[391839554,1760901066898,-500.0,0.00033698,8]
[391839555,1760901066913,-500.0,0.00033698,8]
[391839556,1760901066928,-500.0,0.00033698,8]
[391839557,1760901066946,-500.0,0.00033698,8]
[391839558,1760901066960,-500.0,0.00033698,8]
[391839559,1760901066975,-1203.43,0.00033698,8]
[391839560,1760901066990,-500.0,0.00033698,8]
[391839561,1760901067004,-500.0,0.00033698,8]
[391839562,1760901067019,-500.0,0.00033698,8]
[391839563,1760901067034,-500.0,0.00033698,8]
[391839564,1760901067049,-1045.46,0.00033698,8]
[391839565,1760901067064,-180.63936377,0.00033698,8]
[391839566,1760901067080,-500.0,0.00033698,8]
[391839567,1760901067094,-500.0,0.00033698,8]
[391839568,1760901067109,-959.13,0.00033698,8]
[391839569,1760901067124,-649.07,0.00033698,8]
[391839570,1760901067139,-500.0,0.00033698,8]
[391839571,1760901067153,-803.32,0.00033698,8]
[391839572,1760901067169,-500.0,0.00033698,8]
[391839573,1760901067186,-500.0,0.00033698,8]
[391839574,1760901067202,-500.0,0.00033698,8]
[391839575,1760901067217,-691.49,0.00033698,8]
[391839576,1760901067233,-500.0,0.00033698,8]
[391839577,1760901067248,-500.0,0.00033698,8]
[391839578,1760901067264,-500.0,0.00033698,8]
[391839579,1760901067278,-500.0,0.00033698,8]
[391839580,1760901067293,-500.0,0.00033698,8]
[391839581,1760901067308,-500.0,0.00033698,8]
[391839582,1760901067326,-500.0,0.00033698,8]
[391839583,1760901067343,-500.0,0.00033698,8]
[391839584,1760901067355,-1000.0,0.00033698,8]
[391839585,1760901067365,-500.0,0.00033698,8]
[391839586,1760901067374,-500.0,0.00033698,8]
[391839587,1760901067525,-500.0,0.00033698,8]
[391839588,1760901067549,-508.61,0.00033698,8]
[391839589,1760901067559,-500.0,0.00033698,8]
[391839590,1760901067568,-500.0,0.00033698,8]
[391839591,1760901067579,-500.0,0.00033698,8]
[391839592,1760901067588,-500.0,0.00033698,8]
[391839593,1760901067597,-313.62210694,0.00033698,8]
[391839594,1760901067607,-500.0,0.00033698,8]
[391839595,1760901067617,-500.0,0.00033698,8]
[391839596,1760901067627,-500.0,0.00033698,8]
[391839597,1760901067637,-500.0,0.00033698,8]
[391839598,1760901067646,-500.0,0.00033698,8]
[391839599,1760901067655,-1187.93,0.00033698,8]
[391839600,1760901067665,-500.0,0.00033698,8]
[391839601,1760901067674,-500.0,0.00033698,8]
[391839602,1760901067683,-500.0,0.00033698,2]
[391839603,1760901067694,-500.0,0.00033698,8]
[391839604,1760901067703,-1293.26,0.00033698,8]
[391839605,1760901067713,-500.0,0.00033698,8]
[391839606,1760901067723,-500.0,0.00033698,8]
[391839607,1760901067733,-566.50858433,0.00033698,8]
[391839608,1760901067742,-500.0,0.00033698,8]
[391839609,1760901067752,-500.0,0.00033698,8]
[391839610,1760901067762,-500.0,0.00033698,8]
[391839611,1760901067771,-262.57979317,0.00033698,8]
[391839612,1760901067780,-500.0,0.00033698,8]
[391839613,1760901067790,-465.36744169,0.00033698,8]
[391839614,1760901067799,-368.94208211,0.00033698,8]
[391839615,1760901067808,-500.0,0.00033698,8]
[391839616,1760901067818,-486.56368354,0.00033698,8]
[391839617,1760901067827,-244.88045706,0.00033698,8]
[391839618,1760901067837,-500.0,0.00033698,8]
[391839619,1760901067846,-446.7277662,0.00033698,8]
[391839620,1760901067856,-593.63434425,0.00033698,8]
[391839621,1760901067866,-500.0,0.00033698,8]
[391839622,1760901067881,-686.45,0.00033698,8]
[391839623,1760901067891,-500.0,0.00033698,8]
[391839624,1760901067901,-500.0,0.00033698,8]
[391839625,1760901067910,-1028.97,0.00033698,8]
[391839626,1760901067919,-500.0,0.00033698,8]
[391839627,1760901067928,-500.0,0.00033698,8]
[391839628,1760901067938,-500.0,0.00033698,8]
[391839629,1760901067948,-500.0,0.00033698,8]
[391839630,1760901067957,-500.0,0.00033698,8]
[391839631,1760901067967,-500.0,0.00033698,8]
[391839632,1760901067976,-500.0,0.00033698,8]
[391839633,1760901067987,-500.0,0.00033698,8]
[391839634,1760901067997,-500.0,0.00033698,8]
[391839635,1760901068006,-500.0,0.00033698,2]
[391839636,1760901068016,-500.0,0.00033698,7]
[391839637,1760901068025,-500.0,0.00033698,8]
[391839638,1760901068035,-500.0,0.00033698,8]
[391839639,1760901068044,-500.0,0.00033698,8]
[391839640,1760901068053,-547.35140156,0.00033698,8]
[391839641,1760901068063,-500.0,0.00033698,8]
[391839642,1760901068073,-1194.94,0.00033698,8]
[391839643,1760901068082,-500.0,0.00033698,8]
[391839644,1760901068093,-500.0,0.00033698,8]
[391839645,1760901068103,-5006.33,0.00033698,2]
[391839646,1760901068113,-1000.0,0.00033698,30]
[391839647,1760901068124,-1019.01,0.00033698,8]
[391839648,1760901068134,-1020.77,0.00033698,8]
[391839649,1760901068144,-500.0,0.00033698,8]
[391839650,1760901068155,-500.0,0.00033698,8]
[391839651,1760901068165,-500.0,0.00033698,8]
[391839652,1760901068175,-500.0,0.00033698,8]
[391839653,1760901068185,-504.61006327,0.00033698,8]
[391839654,1760901068195,-500.0,0.00033698,8]
[391839655,1760901068204,-500.0,0.00033698,8]
[391839656,1760901068215,-500.0,0.00033698,8]
[391839657,1760901068224,-500.0,0.00033698,8]
[391839658,1760901068234,-500.0,0.00033698,8]
[391839659,1760901068244,-432.87048971,0.00033698,8]
[391839660,1760901068254,-500.0,0.00033698,8]
[391839661,1760901068265,-500.0,0.00033698,8]
[391839662,1760901068274,-348.89908928,0.00033698,8]
[391839663,1760901068284,-500.0,0.00033698,8]
[391839664,1760901068294,-500.0,0.00033698,8]
[391839665,1760901068304,-235.31007232,0.00033698,8]
[391839666,1760901068314,-500.0,0.00033698,8]
[391839667,1760901068323,-1066.64,0.00033698,8]
[391839668,1760901068332,-845.63,0.00033698,8]
[391839669,1760901068341,-300.0,0.00033698,2]
[391839670,1760901068351,-191.21,0.00033698,8]
[391839671,1760901068360,-693.55,0.00033698,7]
[391839672,1760901068369,-500.0,0.00033698,8]
[391839673,1760901068378,-500.0,0.00033698,8]
[391839674,1760901068387,-787.59,0.00033698,8]
[391839675,1760901068397,-500.0,0.00033698,8]
[391839676,1760901068406,-500.0,0.00033698,8]
[391839677,1760901068416,-487.59132101,0.00033698,8]
[391839678,1760901068425,-500.0,0.00033698,8]
[391839679,1760901068435,-264.64839333,0.00033698,8]
[391839680,1760901068445,-552.14,0.00033698,8]
[391839681,1760901068454,-500.0,0.00033698,8]
[391839682,1760901068464,-500.0,0.00033698,8]
[391839683,1760901068474,-500.0,0.00033698,8]
[391839684,1760901068483,-500.0,0.00033698,8]
[391839685,1760901068493,-500.0,0.00033698,8]
[391839686,1760901068503,-500.0,0.00033698,8]
[391839687,1760901068512,-503.36751892,0.00033698,8]
[391839688,1760901068522,-500.0,0.00033698,8]
[391839689,1760901068531,-500.0,0.00033698,8]
[391839690,1760901068540,-500.0,0.00033698,8]
[391839691,1760901068550,-500.0,0.00033698,8]
[391839692,1760901068559,-1166.2,0.00033698,8]
[391839693,1760901068569,-500.0,0.00033698,8]
[391839694,1760901068579,-500.0,0.00033698,8]
[391839695,1760901068588,-547.83318762,0.00033698,8]
[391839696,1760901068598,-500.0,0.00033698,8]
[391839697,1760901068608,-500.0,0.00033698,8]
[391839698,1760901068618,-500.0,0.00033698,8]
[391839699,1760901068628,-1574.86,0.00033698,8]
[391839700,1760901068637,-500.0,0.00033698,8]
[391839701,1760901068647,-542.79146849,0.00033698,8]
[391839702,1760901069122,-301.3850515,0.00032876,30]
[391839703,1760901069137,-358.5430165,0.00032876,30]
[391839704,1760901069148,-500.0,0.00032876,8]
[391839705,1760901069156,-659.928068,0.00032876,30]
[391839706,1760901069167,-659.928068,0.00032876,30]
[391839707,1760901069176,-659.928069,0.00033039,30]
[391839708,1760901069186,-500.0,0.0003315,8]
[391839709,1760901069196,-500.0,0.00033424,8]
[391839710,1760901069205,-60.06853151,0.00033698,8]
[391839711,1760901069215,-500.0,0.00033698,8]
[391839712,1760901069225,-641.07777886,0.00033698,8]
[391839713,1760901069235,-435.52646813,0.00033698,8]
[391839725,1760901143584,200.0,0.00034191,30]
[391839726,1760901144177,300.0,0.00034191,30]
[391839729,1760901171703,-158.77,0.00013699,2]
[391839734,1760901365253,200.0,0.00034187,120]
[391839735,1760901425579,887.64831442,0.00034187,30]
[391839736,1760901425696,3000.0,0.00034187,30]
[391839737,1760901426362,3000.0,0.00034187,30]
[391839738,1760901426973,3000.0,0.00034187,30]
[391839739,1760901428441,250.0,0.00034187,30]
[391839740,1760901429061,250.0,0.00034187,30]
[391839741,1760901432168,369.75363377,0.00034187,30]
[391839742,1760901433067,414.00099388,0.00034187,30]
[391839744,1760901442949,200.0,0.00034187,30]
[391839745,1760901443378,300.0,0.00034187,30]
[391839747,1760901661515,200.0,0.00034191,120]
[391839749,1760901744734,200.0,0.00034191,30]
[391839750,1760901745309,300.0,0.00034191,30]
[391839755,1760901907365,-29.21,0.00013699,2]
[391839756,1760901907393,-313.21870699,0.00014041,2]
[391839757,1760901908411,759.42850112,0.0003419,90]
[391839758,1760901910719,532.87100597,0.0003419,30]
[391839759,1760901912125,419.8420661,0.0003419,60]
[391839760,1760901912159,398.25472274,0.0003419,30]
[391839761,1760901912231,692.20116048,0.0003419,30]
[391839762,1760901913071,259.15941032,0.0003419,30]
[391839763,1760901913792,1483.26464197,0.0003419,30]
[391839764,1760901914781,913.73721951,0.0003419,30]
[391839765,1760901914867,474.26163756,0.0003419,30]
[391839766,1760901916259,1161.45616616,0.0003419,30]
[391839767,1760901917798,749.0320837,0.0003419,30]
[391839768,1760901920224,10455.90624566,9e-05,2]
[391839769,1760901922095,2092.35531879,0.0003419,30]
[391839770,1760901923905,770.90100699,0.0003419,30]
[391839771,1760901923973,153.66155147,0.0003419,120]
[391839772,1760901928984,247.27098947,0.0003419,30]
[391839773,1760901934687,2070.35292244,0.0003419,30]
[391839774,1760901940735,1094.54028382,0.0003419,30]
[391839775,1760901941172,1484.57858554,0.0003419,30]
[391839776,1760901943164,737.50672686,0.0003419,30]
[391839777,1760901944696,646.32378881,0.0003419,120]
[391839778,1760901950079,894.82461107,0.0003419,30]
[391839779,1760901957892,903.57010055,0.0003419,30]
[391839780,1760901960711,200.0,0.0003419,120]
[391839781,1760901964020,1949.80873323,0.0003419,30]
[391839782,1760901964509,525.33648894,0.0003419,120]
[391839784,1760901967252,973.22968054,0.0003419,30]
[391839785,1760901968882,471.65967029,0.0003419,60]
[391839787,1760901972629,1497.40587371,0.0003419,30]
[391839788,1760901972661,217.78388743,0.0003419,30]
[391839789,1760901972709,209.49978799,0.0003419,60]
[391839790,1760901973146,1005.59109059,0.0003419,30]
[391839791,1760901980776,1080.66821805,0.0003419,30]
[391839792,1760901982445,2000.0,0.0003419,30]
[391839793,1760901988587,367.40625955,0.0003419,30]
[391839794,1760901995084,542.22807498,0.0003419,30]
[391839795,1760902002967,889.94074138,0.0003419,30]
[391839796,1760902024007,2034.11297166,0.0003419,30]
[391839797,1760902042787,200.0,0.0003419,30]
[391839798,1760902043246,300.0,0.0003419,30]
[391839800,1760902047306,1058.50544819,0.0003419,30]
[391839801,1760902066213,235.20343547,0.0003419,30]
[391839802,1760902070119,997.0,0.0003419,30]
[391839803,1760902076624,934.43283143,0.0003419,30]
[391839804,1760902076657,175.83160613,0.0003419,120]
[391839805,1760902083171,484.60291823,0.0003419,60]
[391839806,1760902086057,924.44753497,0.0003419,30]
[391839807,1760902086761,491.05748536,0.0003419,55]
[391839808,1760902086839,503.85232769,0.0003419,30]
[391839810,1760902104776,438.60732173,0.0003419,60]
[391839811,1760902105965,213.38571546,0.0003419,30]
[391839812,1760902108201,150.33107028,0.0003419,30]
[391839813,1760902108428,1141.96273609,0.0003419,30]
[391839814,1760902108583,1225.74247301,0.0003419,30]
[391839815,1760902109144,279.49118875,0.0003419,30]
[391839816,1760902109431,1703.90356205,0.0003419,30]
[391839817,1760902109473,2683.80514412,0.0003419,60]
[391839818,1760902109854,1846.09922091,0.0003419,30]
[391839819,1760902109890,213.25400185,0.0003419,31]
[391839820,1760902110896,1600.58803383,0.0003419,30]
[391839821,1760902111423,1535.75908508,0.0003419,30]
[391839822,1760902111822,2072.67426947,0.0003419,30]
[391839823,1760902111885,390.09649017,0.0003419,30]
[391839824,1760902111992,157.64749241,0.0003419,30]
[391839825,1760902115676,1242.35655667,0.0003419,30]
[391839827,1760902115924,253.02524396,0.0003419,120]
[391839829,1760902116616,894.04871271,0.0003419,30]
[391839831,1760902116955,274.47318118,0.0003419,30]
[391839834,1760902118047,449.31165636,0.0003419,30]
[391839840,1760902120337,1574.13152974,0.0003419,30]
[391839841,1760902120805,627.39671094,0.0003419,60]
[391839843,1760902121471,1085.34859226,0.0003419,30]
[391839844,1760902122734,217.37087982,0.0003419,30]
[391839845,1760902123028,2036.6834813,0.0003419,30]
[391839846,1760902123069,409.86267381,0.0003419,30]
[391839847,1760902123101,1224.28630073,0.0003419,30]
[391839848,1760902123593,498.23782538,0.0003419,30]
[391839849,1760902123625,264.18729133,0.0003419,120]
[391839850,1760902123657,399.83342926,0.0003419,30]
[391839851,1760902123733,467.5147407,0.0003419,30]
[391839852,1760902124253,523.21127148,0.0003419,60]
[391839854,1760902125201,428.59495296,0.0003419,30]
[391839855,1760902125349,1391.00518398,0.0003419,30]
[391839856,1760902125447,333.75376824,0.0003419,30]
[391839857,1760902125843,348.07120142,0.0003419,30]
[391839868,1760902232070,-300.0,0.00014505,2]
[391839870,1760902232080,-541.09768603,0.00014968,2]
[391839871,1760902232091,-1326.4511873,0.00014968,2]
[391839872,1760902232124,-436.35539711,0.00014968,2]
[391839873,1760902232182,-2533.30139405,0.00014968,2]
[391839874,1760902232192,-529.59492403,0.00014973,2]
[391839875,1760902232202,-1431.71889945,0.0001499,2]
[391839876,1760902232213,-243.87110055,0.0001499,2]
[391839877,1760902232225,-1200.0,0.00014998,2]
[391839878,1760902232234,-300.0,0.00014998,2]
[391839879,1760902232244,-300.0,0.00014998,2]
[391839880,1760902232254,-505.67893665,0.00014999,2]
[391839881,1760902232264,-398.30917406,0.00014999,2]
[391839882,1760902232273,-457.32706501,0.00014999,2]
[391839883,1760902232283,-500.0,0.00014999,2]
[391839884,1760902232292,-500.0,0.00014999,2]
[391839885,1760902232302,-500.0,0.00014999,2]
[391839886,1760902232311,-500.0,0.00014999,2]
[391839887,1760902232321,-500.0,0.00014999,2]
[391839888,1760902232331,-500.0,0.00014999,2]
[391839889,1760902232340,-500.0,0.00014999,2]
[391839890,1760902232354,-500.0,0.00014999,2]
[391839892,1760902232364,-500.0,0.00014999,2]
[391839894,1760902232373,-500.0,0.00014999,2]
[391839896,1760902232383,-500.0,0.00014999,2]
[391839897,1760902232392,-260.0529096,0.00014999,2]
[391839899,1760902232401,-500.0,0.00014999,2]
[391839901,1760902232410,-500.0,0.00014999,2]
[391839903,1760902232419,-500.0,0.00014999,2]
[391839905,1760902232428,-500.0,0.00014999,2]
[391839907,1760902232438,-500.0,0.00014999,2]
[391839909,1760902232447,-500.0,0.00014999,2]
[391839911,1760902232456,-500.0,0.00014999,2]
[391839913,1760902232468,-500.0,0.00014999,2]
[391839915,1760902232477,-500.0,0.00014999,2]
[391839917,1760902232486,-500.0,0.00014999,2]
[391839919,1760902232496,-500.0,0.00014999,2]
[391839921,1760902232510,-500.0,0.00014999,2]
[391839923,1760902232519,-500.0,0.00014999,2]
[391839925,1760902232529,-500.0,0.00014999,2]
[391839927,1760902232539,-500.0,0.00014999,2]
[391839929,1760902232548,-500.0,0.00014999,2]
[391839931,1760902232558,-500.0,0.00014999,2]
[391839933,1760902232567,-500.0,0.00014999,2]
[391839935,1760902232579,-500.0,0.00014999,2]
[391839937,1760902232589,-500.0,0.00014999,2]
[391839939,1760902232599,-142930.32343047,0.00015,2]
[391839942,1760902232611,-18720.29873054,0.00015,2]
[391839944,1760902232622,-1114.63276947,0.00015,2]
[391839946,1760902232633,-404.53844161,0.00015,2]
[391839949,1760902232657,-531.67165279,0.00015,2]
[391839951,1760902232672,-435.8409864,0.00015,2]
[391839954,1760902232684,-5284.27311125,0.00015,2]
[391839956,1760902232693,-2597.19270727,0.00015,2]
[391839958,1760902232704,-702.73856019,0.00015,2]
[391839969,1760902238033,-8328.333013,0.00015,2]
[391839970,1760902238196,-2578.3350066,0.00015,2]
[391839982,1760902243201,-753.9600003,0.00015,2]
[391839991,1760902246319,-1017.91380501,0.00015,2]
[391839992,1760902246376,-1206.29981417,0.00015,2]
[391839993,1760902246388,-1907.64,0.00015,2]
[391839994,1760902246401,-4254.49200001,0.00015,2]
[391840001,1760902261692,200.0,0.0003419,120]
[391840003,1760902342711,200.0,0.0003419,30]
[391840004,1760902343150,300.0,0.0003419,30]
[391840011,1760902560773,200.0,0.0003419,120]
[391840014,1760902644478,200.0,0.0003419,30]
[391840015,1760902645373,300.0,0.0003419,30]
[391840019,1760902776915,1000.0,0.00034187,30]
[391840020,1760902777660,1000.0,0.00034187,30]
[391840021,1760902778342,1000.0,0.00034187,30]
[391840022,1760902779039,1000.0,0.00034187,30]
[391840023,1760902779765,1000.0,0.00034187,30]
[391840024,1760902780464,1000.0,0.00034187,30]
[391840025,1760902781186,1000.0,0.00034187,30]
[391840026,1760902781867,1000.0,0.00034187,30]
[391840027,1760902782589,1000.0,0.00034187,30]
[391840028,1760902783903,1000.0,0.00034187,30]
[391840029,1760902784577,1000.0,0.00034187,30]
[391840030,1760902785289,1000.0,0.00034187,30]
[391840031,1760902786532,1000.0,0.00034187,30]
[391840032,1760902787247,1000.0,0.00034187,30]
[391840033,1760902787994,1000.0,0.00034187,30]
[391840034,1760902788692,1000.0,0.00034187,30]
[391840035,1760902789408,1000.0,0.00034187,30]
[391840036,1760902790113,1000.0,0.00034187,30]
[391840037,1760902790833,1000.0,0.00034187,30]
[391840038,1760902792110,1000.0,0.00034187,30]
[391840039,1760902792811,1000.0,0.00034187,30]
[391840040,1760902793523,1000.0,0.00034187,30]
[391840041,1760902794341,1000.0,0.00034187,30]
[391840042,1760902795043,1000.0,0.00034187,30]
[391840043,1760902795751,1000.0,0.00034187,30]
[391840044,1760902797006,1000.0,0.00034187,30]
[391840045,1760902797725,1000.0,0.00034187,30]
[391840046,1760902799009,1000.0,0.00034187,30]
[391840047,1760902799698,602.42572727,0.00034187,30]